[Event "Titled Tuesday Blitz March 01 Early 2022"]
[White "Bongo Akanga Ndjila, Barthelemy"]
[Black "Qashashvili, Alexandre"]
[WhiteFideId "10609431"]
[BlackFideId "13600842"]
[WhiteElo "1803"]
[BlackElo "2316"]
[Result "0-1"]
[Round "05"]
[TimeControl "180+1"]
[Date "2022.03.01"]
[WhiteClock "0:00:35"]
[BlackClock "0:01:08"]

1. d4 {[%clk 0:03:00]}  d5 {[%clk 0:02:38]} 2. Nf3 {[%clk 0:02:59]}  c6 {[%clk 0:02:39]} 3. Bg5 {[%clk 0:02:56]}  Bf5 {[%clk 0:02:39]} 4. e3 {[%clk 0:02:55]}  h6 {[%clk 0:02:39]} 5. Bh4 {[%clk 0:02:53]}  Nd7 {[%clk 0:02:39]} 6. Bd3 {[%clk 0:02:49]}  Bxd3 {[%clk 0:02:39]} 7. Qxd3 {[%clk 0:02:49]}  Ngf6 {[%clk 0:02:39]} 8. O-O {[%clk 0:02:45]}  e6 {[%clk 0:02:39]} 9. Nbd2 {[%clk 0:02:44]}  Be7 {[%clk 0:02:39]} 10. c3 {[%clk 0:02:43]}  O-O {[%clk 0:02:38]} 11. a4 {[%clk 0:02:42]}  a5 {[%clk 0:02:37]} 12. e4 {[%clk 0:02:39]}  dxe4 {[%clk 0:02:37]} 13. Nxe4 {[%clk 0:02:38]}  Nxe4 {[%clk 0:02:38]} 14. Bxe7 {[%clk 0:02:38]}  Nxf2 {[%clk 0:02:15]} 15. Bxd8 {[%clk 0:02:35]}  Nxd3 {[%clk 0:02:15]} 16. Be7 {[%clk 0:02:32]}  Rfe8 {[%clk 0:02:13]} 17. Bd6 {[%clk 0:02:31]}  Nxb2 {[%clk 0:02:08]} 18. Rfb1 {[%clk 0:02:31]}  Nc4 {[%clk 0:02:07]} 19. Bg3 {[%clk 0:02:23]}  b6 {[%clk 0:02:02]} 20. Ne5 {[%clk 0:02:16]}  Ndxe5 {[%clk 0:02:02]} 21. dxe5 {[%clk 0:02:04]}  Red8 {[%clk 0:01:58]} 22. Rd1 {[%clk 0:02:03]}  Rd5 {[%clk 0:01:45]} 23. Rd4 {[%clk 0:02:02]}  Rad8 {[%clk 0:01:40]} 24. Rxc4 {[%clk 0:01:55]}  Rd2 {[%clk 0:01:28]} 25. Rxc6 {[%clk 0:01:52]}  Rc2 {[%clk 0:01:28]} 26. Rxb6 {[%clk 0:01:44]}  Rdd2 {[%clk 0:01:27]} 27. Rc6 {[%clk 0:01:42]}  Rxg2+ {[%clk 0:01:26]} 28. Kf1 {[%clk 0:01:37]}  h5 {[%clk 0:01:25]} 29. Rc4 {[%clk 0:01:26]}  g5 {[%clk 0:01:23]} 30. Be1 {[%clk 0:01:04]}  Rxh2 {[%clk 0:01:20]} 31. Kg1 {[%clk 0:01:04]}  Rcg2+ {[%clk 0:01:11]} 32. Kf1 {[%clk 0:01:03]}  h4 {[%clk 0:01:11]} 33. Rb1 {[%clk 0:00:37]}  h3 {[%clk 0:01:09]} 34. Rb8+ {[%clk 0:00:35]}  Kg7 {[%clk 0:01:08]} 0-1


[Site "https://www.chess.com"]

[Event "Titled Tuesday Blitz March 01 Early 2022"]
[White "Boraso, Alessio"]
[Black "Estrada Nieto, Julian"]
[WhiteFideId "848077"]
[BlackFideId "5101018"]
[WhiteElo "2277"]
[BlackElo "2246"]
[Result "0-1"]
[Round "05"]
[TimeControl "180+1"]
[Date "2022.03.01"]
[WhiteClock "0:00:03"]
[BlackClock "0:00:12"]

1. d4 {[%clk 0:02:55]}  d5 {[%clk 0:03:00]} 2. Nf3 {[%clk 0:02:53]}  Nf6 {[%clk 0:02:59]} 3. Bf4 {[%clk 0:02:53]}  c5 {[%clk 0:02:59]} 4. e3 {[%clk 0:02:51]}  Nc6 {[%clk 0:03:00]} 5. c3 {[%clk 0:02:49]}  e6 {[%clk 0:02:59]} 6. Nbd2 {[%clk 0:02:45]}  h6 {[%clk 0:02:59]} 7. Bd3 {[%clk 0:02:46]}  Bd6 {[%clk 0:02:59]} 8. Bxd6 {[%clk 0:02:36]}  Qxd6 {[%clk 0:02:59]} 9. O-O {[%clk 0:02:35]}  O-O {[%clk 0:02:54]} 10. e4 {[%clk 0:02:20]}  dxe4 {[%clk 0:02:52]} 11. Nxe4 {[%clk 0:02:21]}  Nxe4 {[%clk 0:02:52]} 12. Bxe4 {[%clk 0:02:18]}  cxd4 {[%clk 0:02:52]} 13. Bxc6 {[%clk 0:02:17]}  Qxc6 {[%clk 0:02:45]} 14. Qxd4 {[%clk 0:02:10]}  b6 {[%clk 0:02:39]} 15. Ne5 {[%clk 0:02:03]}  Qc7 {[%clk 0:02:38]} 16. Rad1 {[%clk 0:01:39]}  Bb7 {[%clk 0:02:36]} 17. Qd7 {[%clk 0:01:26]}  Rac8 {[%clk 0:02:18]} 18. Rfe1 {[%clk 0:01:20]}  Bd5 {[%clk 0:02:08]} 19. Qxc7 {[%clk 0:00:37]}  Rxc7 {[%clk 0:02:08]} 20. a3 {[%clk 0:00:38]}  Rfc8 {[%clk 0:01:39]} 21. Rd2 {[%clk 0:00:37]}  Kf8 {[%clk 0:01:20]} 22. Red1 {[%clk 0:00:36]}  Ke8 {[%clk 0:01:06]} 23. f3 {[%clk 0:00:37]}  f6 {[%clk 0:01:05]} 24. Nd3 {[%clk 0:00:36]}  Bb3 {[%clk 0:01:05]} 25. Re1 {[%clk 0:00:36]}  Kf7 {[%clk 0:01:03]} 26. Nf2 {[%clk 0:00:23]}  Bd5 {[%clk 0:00:53]} 27. Ne4 {[%clk 0:00:21]}  Bxe4 {[%clk 0:00:52]} 28. Rxe4 {[%clk 0:00:18]}  Ke7 {[%clk 0:00:49]} 29. Red4 {[%clk 0:00:19]}  e5 {[%clk 0:00:40]} 30. Rd5 {[%clk 0:00:19]}  Rb8 {[%clk 0:00:37]} 31. Kf2 {[%clk 0:00:19]}  Rbb7 {[%clk 0:00:37]} 32. Ke3 {[%clk 0:00:19]}  Ke6 {[%clk 0:00:33]} 33. Rd6+ {[%clk 0:00:19]}  Ke7 {[%clk 0:00:33]} 34. Ke4 {[%clk 0:00:18]}  g6 {[%clk 0:00:27]} 35. g4 {[%clk 0:00:18]}  Rc4+ {[%clk 0:00:26]} 36. Ke3 {[%clk 0:00:16]}  Rbc7 {[%clk 0:00:24]} 37. h4 {[%clk 0:00:15]}  h5 {[%clk 0:00:22]} 38. g5 {[%clk 0:00:05]}  Rf4 {[%clk 0:00:16]} 39. gxf6+ {[%clk 0:00:05]}  Rxf6 {[%clk 0:00:16]} 40. Rxf6 {[%clk 0:00:04]}  Kxf6 {[%clk 0:00:17]} 41. Rc2 {[%clk 0:00:02]}  Rc4 {[%clk 0:00:16]} 42. Rh2 {[%clk 0:00:02]}  Kf5 {[%clk 0:00:15]} 43. Rd2 {[%clk 0:00:01]}  Rxh4 {[%clk 0:00:14]} 44. Rd7 {[%clk 0:00:02]}  Rh2 {[%clk 0:00:13]} 45. Rf7+ {[%clk 0:00:02]}  Ke6 {[%clk 0:00:12]} 46. b4 {[%clk 0:00:03]}  Kxf7 {[%clk 0:00:12]} 0-1


[Site "https://www.chess.com"]

[Event "Titled Tuesday Blitz March 01 Early 2022"]
[White "Bortnyk, Olexandr"]
[Black "Garriga Cazorla, Pere"]
[WhiteFideId "14120828"]
[BlackFideId "32011601"]
[WhiteElo "2723"]
[BlackElo "2458"]
[Result "1-0"]
[Round "05"]
[TimeControl "180+1"]
[Date "2022.03.01"]
[WhiteClock "0:00:03"]
[BlackClock "0:00:12"]

1. e4 {[%clk 0:03:00]}  c5 {[%clk 0:02:59]} 2. c3 {[%clk 0:02:59]}  Nf6 {[%clk 0:02:59]} 3. e5 {[%clk 0:02:56]}  Nd5 {[%clk 0:02:59]} 4. d4 {[%clk 0:02:53]}  cxd4 {[%clk 0:03:00]} 5. Nf3 {[%clk 0:02:53]}  d6 {[%clk 0:03:00]} 6. cxd4 {[%clk 0:02:53]}  Nc6 {[%clk 0:02:57]} 7. Bc4 {[%clk 0:02:51]}  dxe5 {[%clk 0:02:45]} 8. dxe5 {[%clk 0:02:50]}  Nb6 {[%clk 0:02:45]} 9. Qxd8+ {[%clk 0:02:46]}  Nxd8 {[%clk 0:02:46]} 10. Bb3 {[%clk 0:02:45]}  Be6 {[%clk 0:02:39]} 11. Nc3 {[%clk 0:02:42]}  a6 {[%clk 0:02:17]} 12. O-O {[%clk 0:02:32]}  Bxb3 {[%clk 0:01:57]} 13. axb3 {[%clk 0:02:32]}  e6 {[%clk 0:01:57]} 14. Rd1 {[%clk 0:02:24]}  Nc6 {[%clk 0:01:49]} 15. Be3 {[%clk 0:00:58]}  Nd7 {[%clk 0:01:46]} 16. Nb5 {[%clk 0:00:46]}  Rc8 {[%clk 0:01:42]} 17. Na7 {[%clk 0:00:32]}  Nxa7 {[%clk 0:01:07]} 18. Bxa7 {[%clk 0:00:33]}  Bb4 {[%clk 0:01:01]} 19. Rd4 {[%clk 0:00:30]}  Bc5 {[%clk 0:00:44]} 20. Rc1 {[%clk 0:00:19]}  Rc6 {[%clk 0:00:27]} 21. Rxd7 {[%clk 0:00:14]}  Kxd7 {[%clk 0:00:25]} 22. Bxc5 {[%clk 0:00:13]}  Kc8 {[%clk 0:00:22]} 23. Rc3 {[%clk 0:00:10]}  Rd8 {[%clk 0:00:20]} 24. Bd6 {[%clk 0:00:10]}  Rxc3 {[%clk 0:00:19]} 25. bxc3 {[%clk 0:00:11]}  Kd7 {[%clk 0:00:20]} 26. Kf1 {[%clk 0:00:11]}  Rc8 {[%clk 0:00:20]} 27. c4 {[%clk 0:00:10]}  b5 {[%clk 0:00:20]} 28. cxb5 {[%clk 0:00:08]}  axb5 {[%clk 0:00:20]} 29. Nd4 {[%clk 0:00:09]}  Rc3 {[%clk 0:00:19]} 30. b4 {[%clk 0:00:07]}  f6 {[%clk 0:00:17]} 31. f4 {[%clk 0:00:03]}  Rc4 {[%clk 0:00:17]} 32. Ne2 {[%clk 0:00:02]}  g5 {[%clk 0:00:16]} 33. g3 {[%clk 0:00:02]}  gxf4 {[%clk 0:00:15]} 34. gxf4 {[%clk 0:00:03]}  f5 {[%clk 0:00:15]} 35. Bc5 {[%clk 0:00:03]}  Kc6 {[%clk 0:00:15]} 36. Kf2 {[%clk 0:00:03]}  Kd5 {[%clk 0:00:15]} 37. Ke3 {[%clk 0:00:03]}  Rc2 {[%clk 0:00:15]} 38. Kd3 {[%clk 0:00:04]}  Rb2 {[%clk 0:00:13]} 39. h4 {[%clk 0:00:03]}  Ra2 {[%clk 0:00:12]} 40. Nc3+ {[%clk 0:00:03]} 1-0


[Site "https://www.chess.com"]

[Event "Titled Tuesday Blitz March 01 Early 2022"]
[White "Brodowski, Piotr"]
[Black "Kamsky, Gata"]
[WhiteFideId "1124480"]
[BlackFideId "2000024"]
[WhiteElo "2422"]
[BlackElo "2645"]
[Result "0-1"]
[Round "05"]
[TimeControl "180+1"]
[Date "2022.03.01"]
[WhiteClock "0:00:02"]
[BlackClock "0:00:13"]

1. c4 {[%clk 0:02:57]}  f5 {[%clk 0:02:55]} 2. Nc3 {[%clk 0:02:56]}  Nf6 {[%clk 0:02:55]} 3. Nf3 {[%clk 0:02:55]}  g6 {[%clk 0:02:53]} 4. d3 {[%clk 0:02:55]}  Bg7 {[%clk 0:02:53]} 5. e4 {[%clk 0:02:55]}  d6 {[%clk 0:02:51]} 6. exf5 {[%clk 0:02:54]}  Bxf5 {[%clk 0:02:33]} 7. d4 {[%clk 0:02:54]}  O-O {[%clk 0:02:31]} 8. Bd3 {[%clk 0:02:54]}  Bg4 {[%clk 0:02:27]} 9. Be2 {[%clk 0:02:54]}  Nc6 {[%clk 0:02:23]} 10. h3 {[%clk 0:02:53]}  Bf5 {[%clk 0:02:11]} 11. d5 {[%clk 0:02:48]}  Nb4 {[%clk 0:02:06]} 12. Nd4 {[%clk 0:02:23]}  Bd7 {[%clk 0:01:11]} 13. O-O {[%clk 0:02:09]}  c5 {[%clk 0:01:07]} 14. Ne6 {[%clk 0:02:05]}  Bxe6 {[%clk 0:01:06]} 15. dxe6 {[%clk 0:02:05]}  Nc6 {[%clk 0:01:01]} 16. Be3 {[%clk 0:02:03]}  Qc8 {[%clk 0:01:01]} 17. Nd5 {[%clk 0:01:46]}  Rb8 {[%clk 0:01:00]} 18. Nxf6+ {[%clk 0:01:18]}  Bxf6 {[%clk 0:00:58]} 19. Bh6 {[%clk 0:01:12]}  Re8 {[%clk 0:00:48]} 20. Bf3 {[%clk 0:01:11]}  Nd4 {[%clk 0:00:40]} 21. Bd5 {[%clk 0:01:10]}  b5 {[%clk 0:00:40]} 22. b3 {[%clk 0:00:35]}  bxc4 {[%clk 0:00:37]} 23. bxc4 {[%clk 0:00:35]}  Qa6 {[%clk 0:00:29]} 24. Be3 {[%clk 0:00:29]}  Rb2 {[%clk 0:00:28]} 25. Qg4 {[%clk 0:00:25]}  Rf8 {[%clk 0:00:24]} 26. h4 {[%clk 0:00:25]}  Nf5 {[%clk 0:00:21]} 27. h5 {[%clk 0:00:23]}  Nxe3 {[%clk 0:00:20]} 28. fxe3 {[%clk 0:00:23]}  Kg7 {[%clk 0:00:20]} 29. hxg6 {[%clk 0:00:24]}  h6 {[%clk 0:00:20]} 30. Rf4 {[%clk 0:00:16]}  Qa3 {[%clk 0:00:20]} 31. Qf3 {[%clk 0:00:14]}  Rxa2 {[%clk 0:00:17]} 32. Rf1 {[%clk 0:00:14]}  Ra1 {[%clk 0:00:17]} 33. g3 {[%clk 0:00:09]}  Rxf1+ {[%clk 0:00:17]} 34. Kxf1 {[%clk 0:00:10]}  a5 {[%clk 0:00:17]} 35. Kg2 {[%clk 0:00:08]}  a4 {[%clk 0:00:17]} 36. Qf2 {[%clk 0:00:08]}  Qb2 {[%clk 0:00:16]} 37. Qxb2 {[%clk 0:00:04]}  Bxb2 {[%clk 0:00:16]} 38. Be4 {[%clk 0:00:05]}  a3 {[%clk 0:00:14]} 39. Bb1 {[%clk 0:00:03]}  Rf6 {[%clk 0:00:14]} 40. Kf3 {[%clk 0:00:02]}  Be5 {[%clk 0:00:13]} 41. Rxf6 {[%clk 0:00:02]}  Kxf6 {[%clk 0:00:13]} 42. Kg4 {[%clk 0:00:02]}  Kxe6 {[%clk 0:00:13]} 43. Kh5 {[%clk 0:00:03]}  Bg7 {[%clk 0:00:13]} 44. Kg4 {[%clk 0:00:02]}  Ke5 {[%clk 0:00:13]} 45. Kf3 {[%clk 0:00:03]}  e6 {[%clk 0:00:13]} 46. e4 {[%clk 0:00:03]}  Kd4 {[%clk 0:00:13]} 47. Ba2 {[%clk 0:00:03]}  Kc3 {[%clk 0:00:13]} 48. g4 {[%clk 0:00:03]}  Kb2 {[%clk 0:00:14]} 49. e5 {[%clk 0:00:02]}  dxe5 {[%clk 0:00:13]} 0-1


[Site "https://www.chess.com"]

[Event "Titled Tuesday Blitz March 01 Early 2022"]
[White "Budrewicz, Krzysztof"]
[Black "Thomas, Anysia"]
[WhiteFideId "1127950"]
[BlackFideId "670472"]
[WhiteElo "2248"]
[BlackElo "2002"]
[Result "1-0"]
[Round "05"]
[TimeControl "180+1"]
[Date "2022.03.01"]
[WhiteClock "0:01:26"]
[BlackClock "0:00:02"]

1. d4 {[%clk 0:03:00]}  Nf6 {[%clk 0:02:59]} 2. c4 {[%clk 0:03:01]}  g6 {[%clk 0:02:58]} 3. Nc3 {[%clk 0:03:01]}  d5 {[%clk 0:02:58]} 4. Nf3 {[%clk 0:03:00]}  Bg7 {[%clk 0:02:58]} 5. Qb3 {[%clk 0:02:59]}  dxc4 {[%clk 0:02:56]} 6. Qxc4 {[%clk 0:03:00]}  O-O {[%clk 0:02:56]} 7. e4 {[%clk 0:03:00]}  a6 {[%clk 0:02:57]} 8. Be2 {[%clk 0:02:54]}  b5 {[%clk 0:02:56]} 9. Qb3 {[%clk 0:02:55]}  c5 {[%clk 0:02:57]} 10. dxc5 {[%clk 0:02:54]}  Be6 {[%clk 0:02:57]} 11. Qc2 {[%clk 0:02:40]}  Nbd7 {[%clk 0:02:56]} 12. c6 {[%clk 0:02:32]}  Nb8 {[%clk 0:02:42]} 13. O-O {[%clk 0:02:29]}  Nxc6 {[%clk 0:02:42]} 14. Rd1 {[%clk 0:02:29]}  Nb4 {[%clk 0:01:47]} 15. Qb1 {[%clk 0:02:25]}  Qc7 {[%clk 0:01:40]} 16. a3 {[%clk 0:02:17]}  Nc6 {[%clk 0:01:39]} 17. Nd5 {[%clk 0:02:15]}  Nxd5 {[%clk 0:01:36]} 18. exd5 {[%clk 0:02:15]}  Bf5 {[%clk 0:01:36]} 19. Qa2 {[%clk 0:02:09]}  Ne5 {[%clk 0:01:28]} 20. Be3 {[%clk 0:02:07]}  Nxf3+ {[%clk 0:00:44]} 21. Bxf3 {[%clk 0:02:06]}  Qc2 {[%clk 0:00:31]} 22. Bd4 {[%clk 0:01:46]}  Rac8 {[%clk 0:00:21]} 23. Bxg7 {[%clk 0:01:45]}  Kxg7 {[%clk 0:00:21]} 24. h3 {[%clk 0:01:42]}  Rfd8 {[%clk 0:00:21]} 25. Rac1 {[%clk 0:01:36]}  Qxc1 {[%clk 0:00:19]} 26. Rxc1 {[%clk 0:01:37]}  Rxc1+ {[%clk 0:00:20]} 27. Kh2 {[%clk 0:01:37]}  Rdc8 {[%clk 0:00:14]} 28. Qb3 {[%clk 0:01:37]}  R8c2 {[%clk 0:00:11]} 29. Qb4 {[%clk 0:01:33]}  Rxf2 {[%clk 0:00:09]} 30. Qd4+ {[%clk 0:01:33]}  f6 {[%clk 0:00:04]} 31. Qxf2 {[%clk 0:01:34]}  Rc2 {[%clk 0:00:04]} 32. Qe3 {[%clk 0:01:32]}  Kf7 {[%clk 0:00:04]} 33. b4 {[%clk 0:01:32]}  h5 {[%clk 0:00:03]} 34. Qa7 {[%clk 0:01:27]}  h4 {[%clk 0:00:02]} 35. d6 {[%clk 0:01:26]} 1-0


[Site "https://www.chess.com"]

[Event "Titled Tuesday Blitz March 01 Early 2022"]
[White "Carlsson, Ludvig"]
[Black "Tomiello, Mateus Costamilan"]
[WhiteFideId "1727010"]
[BlackFideId "22701958"]
[WhiteElo "2178"]
[BlackElo "1975"]
[Result "1-0"]
[Round "05"]
[TimeControl "180+1"]
[Date "2022.03.01"]
[WhiteClock "0:00:27"]
[BlackClock "0:00:11"]

1. e4 {[%clk 0:03:00]}  e5 {[%clk 0:03:00]} 2. Nf3 {[%clk 0:03:00]}  Nc6 {[%clk 0:02:59]} 3. Bb5 {[%clk 0:03:01]}  Nf6 {[%clk 0:02:57]} 4. O-O {[%clk 0:03:00]}  Nxe4 {[%clk 0:02:57]} 5. d4 {[%clk 0:02:59]}  Nd6 {[%clk 0:02:57]} 6. dxe5 {[%clk 0:02:58]}  Nxb5 {[%clk 0:02:57]} 7. a4 {[%clk 0:02:58]}  d6 {[%clk 0:02:58]} 8. axb5 {[%clk 0:02:53]}  Nxe5 {[%clk 0:02:57]} 9. Re1 {[%clk 0:02:46]}  Be7 {[%clk 0:02:54]} 10. Nxe5 {[%clk 0:02:46]}  dxe5 {[%clk 0:02:54]} 11. Qxd8+ {[%clk 0:02:45]}  Bxd8 {[%clk 0:02:54]} 12. Rxe5+ {[%clk 0:02:45]}  Be6 {[%clk 0:02:55]} 13. Be3 {[%clk 0:02:43]}  O-O {[%clk 0:02:39]} 14. Nc3 {[%clk 0:02:36]}  Bf6 {[%clk 0:02:37]} 15. Rc5 {[%clk 0:02:31]}  c6 {[%clk 0:02:26]} 16. bxc6 {[%clk 0:02:30]}  b6 {[%clk 0:02:26]} 17. Rb5 {[%clk 0:02:27]}  Rfc8 {[%clk 0:02:20]} 18. f3 {[%clk 0:02:14]}  h6 {[%clk 0:02:01]} 19. Kf2 {[%clk 0:02:12]}  Rxc6 {[%clk 0:01:57]} 20. Rxb6 {[%clk 0:02:12]}  Rxb6 {[%clk 0:01:50]} 21. Bxb6 {[%clk 0:02:11]}  Rb8 {[%clk 0:01:51]} 22. Bxa7 {[%clk 0:02:07]}  Rxb2 {[%clk 0:01:50]} 23. Ne2 {[%clk 0:02:00]}  Rxc2 {[%clk 0:01:47]} 24. Rc1 {[%clk 0:02:00]}  Ra2 {[%clk 0:01:44]} 25. Be3 {[%clk 0:01:59]}  h5 {[%clk 0:01:39]} 26. Rd1 {[%clk 0:01:58]}  Bh4+ {[%clk 0:01:32]} 27. g3 {[%clk 0:01:58]}  Bf6 {[%clk 0:01:31]} 28. Rd2 {[%clk 0:01:59]}  Rxd2 {[%clk 0:01:29]} 29. Bxd2 {[%clk 0:02:00]}  g6 {[%clk 0:01:27]} 30. Bc3 {[%clk 0:01:56]}  Bd8 {[%clk 0:01:24]} 31. Bd4 {[%clk 0:01:55]}  Kf8 {[%clk 0:01:24]} 32. Ke3 {[%clk 0:01:53]}  Bg5+ {[%clk 0:01:22]} 33. Kf2 {[%clk 0:01:49]}  Ke8 {[%clk 0:01:20]} 34. Be5 {[%clk 0:01:42]}  Kd7 {[%clk 0:01:18]} 35. Nd4 {[%clk 0:01:41]}  Bc4 {[%clk 0:01:18]} 36. Nc2 {[%clk 0:01:37]}  Be7 {[%clk 0:01:17]} 37. Bd4 {[%clk 0:01:37]}  Bb3 {[%clk 0:01:15]} 38. Ne3 {[%clk 0:01:36]}  Kc6 {[%clk 0:01:13]} 39. f4 {[%clk 0:01:35]}  Kb5 {[%clk 0:01:01]} 40. Kf3 {[%clk 0:01:33]}  f5 {[%clk 0:00:49]} 41. Ke2 {[%clk 0:01:26]}  Be6 {[%clk 0:00:44]} 42. Kd3 {[%clk 0:01:25]}  Kc6 {[%clk 0:00:42]} 43. Kc3 {[%clk 0:01:21]}  Bc5 {[%clk 0:00:39]} 44. Bxc5 {[%clk 0:01:19]}  Kxc5 {[%clk 0:00:39]} 45. Kd3 {[%clk 0:01:10]}  Bd7 {[%clk 0:00:39]} 46. Ng2 {[%clk 0:01:08]}  Bb5+ {[%clk 0:00:36]} 47. Ke3 {[%clk 0:01:08]}  Kd5 {[%clk 0:00:35]} 48. Nh4 {[%clk 0:01:09]}  Be8 {[%clk 0:00:35]} 49. Nf3 {[%clk 0:01:09]}  Kc4 {[%clk 0:00:30]} 50. Ne5+ {[%clk 0:01:03]}  Kd5 {[%clk 0:00:25]} 51. Nf3 {[%clk 0:00:58]}  Kc4 {[%clk 0:00:23]} 52. Nd4 {[%clk 0:00:43]}  Kd5 {[%clk 0:00:22]} 53. Nc2 {[%clk 0:00:42]}  Kc4 {[%clk 0:00:19]} 54. Ne1 {[%clk 0:00:41]}  Kd5 {[%clk 0:00:16]} 55. Nd3 {[%clk 0:00:40]}  Kc4 {[%clk 0:00:16]} 56. Nf2 {[%clk 0:00:40]}  Kd5 {[%clk 0:00:16]} 57. Nh3 {[%clk 0:00:40]}  Kc4 {[%clk 0:00:16]} 58. Ng5 {[%clk 0:00:41]}  Kc3 {[%clk 0:00:15]} 59. Nh7 {[%clk 0:00:38]}  Kc2 {[%clk 0:00:14]} 60. Nf6 {[%clk 0:00:39]}  Bf7 {[%clk 0:00:15]} 61. Nd7 {[%clk 0:00:37]}  Kd1 {[%clk 0:00:15]} 62. Ne5 {[%clk 0:00:37]}  Be8 {[%clk 0:00:15]} 63. Kf2 {[%clk 0:00:36]}  Kd2 {[%clk 0:00:15]} 64. Kg2 {[%clk 0:00:36]}  Ke3 {[%clk 0:00:16]} 65. Kh3 {[%clk 0:00:36]}  Kf2 {[%clk 0:00:15]} 66. Kh4 {[%clk 0:00:37]}  Kg2 {[%clk 0:00:16]} 67. h3 {[%clk 0:00:34]}  Kh2 {[%clk 0:00:16]} 68. Nc4 {[%clk 0:00:30]}  Bb5 {[%clk 0:00:14]} 69. Nd6 {[%clk 0:00:24]}  Bf1 {[%clk 0:00:14]} 70. Nf7 {[%clk 0:00:24]}  Bxh3 {[%clk 0:00:14]} 71. Ne5 {[%clk 0:00:24]}  Bg4 {[%clk 0:00:14]} 72. Nxg6 {[%clk 0:00:24]}  Kg2 {[%clk 0:00:14]} 73. Nf8 {[%clk 0:00:22]}  Kf3 {[%clk 0:00:15]} 74. Nd7 {[%clk 0:00:22]}  Kg2 {[%clk 0:00:15]} 75. Nf6 {[%clk 0:00:22]}  Kf3 {[%clk 0:00:16]} 76. Nxh5 {[%clk 0:00:22]}  Bxh5 {[%clk 0:00:15]} 77. Kxh5 {[%clk 0:00:22]}  Kxg3 {[%clk 0:00:12]} 78. Kg5 {[%clk 0:00:23]}  Kh3 {[%clk 0:00:08]} 79. Kxf5 {[%clk 0:00:24]}  Kh4 {[%clk 0:00:08]} 80. Kg6 {[%clk 0:00:24]}  Kg4 {[%clk 0:00:08]} 81. f5 {[%clk 0:00:25]}  Kf3 {[%clk 0:00:09]} 82. f6 {[%clk 0:00:26]}  Ke2 {[%clk 0:00:10]} 83. f7 {[%clk 0:00:27]}  Kd1 {[%clk 0:00:11]} 84. f8=Q {[%clk 0:00:27]} 1-0


[Site "https://www.chess.com"]

[Event "Titled Tuesday Blitz March 01 Early 2022"]
[White "Coto Mederos, Michel"]
[Black "Wagner, Dennis"]
[WhiteFideId "3508528"]
[BlackFideId "24650684"]
[WhiteElo "2427"]
[BlackElo "2355"]
[Result "1/2-1/2"]
[Round "05"]
[TimeControl "180+1"]
[Date "2022.03.01"]
[WhiteClock "0:00:08"]
[BlackClock "0:00:08"]

1. d4 {[%clk 0:02:56]}  Nf6 {[%clk 0:02:59]} 2. c4 {[%clk 0:02:49]}  e6 {[%clk 0:02:59]} 3. Nc3 {[%clk 0:02:49]}  Bb4 {[%clk 0:02:59]} 4. e3 {[%clk 0:02:50]}  O-O {[%clk 0:02:58]} 5. Bd3 {[%clk 0:02:50]}  d5 {[%clk 0:02:58]} 6. Nf3 {[%clk 0:02:47]}  dxc4 {[%clk 0:02:55]} 7. Bxc4 {[%clk 0:02:46]}  c5 {[%clk 0:02:55]} 8. O-O {[%clk 0:02:37]}  b6 {[%clk 0:02:55]} 9. a3 {[%clk 0:02:18]}  Bxc3 {[%clk 0:02:55]} 10. bxc3 {[%clk 0:02:18]}  Bb7 {[%clk 0:02:55]} 11. a4 {[%clk 0:02:12]}  Qc7 {[%clk 0:02:55]} 12. Bd3 {[%clk 0:02:09]}  Rd8 {[%clk 0:02:28]} 13. Qe2 {[%clk 0:02:03]}  Be4 {[%clk 0:02:26]} 14. Ba3 {[%clk 0:01:49]}  Nc6 {[%clk 0:02:22]} 15. Rfd1 {[%clk 0:01:41]}  h6 {[%clk 0:02:21]} 16. dxc5 {[%clk 0:01:28]}  Na5 {[%clk 0:02:08]} 17. cxb6 {[%clk 0:01:21]}  axb6 {[%clk 0:02:09]} 18. Bb4 {[%clk 0:01:14]}  Bxd3 {[%clk 0:02:07]} 19. Rxd3 {[%clk 0:01:12]}  Rxd3 {[%clk 0:02:06]} 20. Qxd3 {[%clk 0:01:13]}  Nc4 {[%clk 0:02:05]} 21. h3 {[%clk 0:00:49]}  e5 {[%clk 0:01:57]} 22. Qe2 {[%clk 0:00:39]}  Qc6 {[%clk 0:01:36]} 23. Qc2 {[%clk 0:00:35]}  Nd5 {[%clk 0:01:31]} 24. Rd1 {[%clk 0:00:22]}  Ncxe3 {[%clk 0:01:22]} 25. fxe3 {[%clk 0:00:23]}  Nxb4 {[%clk 0:01:13]} 26. Nxe5 {[%clk 0:00:15]}  Nxc2 {[%clk 0:01:08]} 27. Nxc6 {[%clk 0:00:15]}  Rxa4 {[%clk 0:01:09]} 28. Rd8+ {[%clk 0:00:11]}  Kh7 {[%clk 0:01:08]} 29. Re8 {[%clk 0:00:11]}  Rc4 {[%clk 0:01:02]} 30. Nb4 {[%clk 0:00:08]}  Nxb4 {[%clk 0:00:54]} 31. cxb4 {[%clk 0:00:09]}  Rxb4 {[%clk 0:00:55]} 32. Rb8 {[%clk 0:00:08]}  Rb2 {[%clk 0:00:53]} 33. Kh2 {[%clk 0:00:08]}  Kg6 {[%clk 0:00:54]} 34. Kg3 {[%clk 0:00:08]}  Kf6 {[%clk 0:00:50]} 35. Rb7 {[%clk 0:00:08]}  Ke6 {[%clk 0:00:49]} 36. Kf3 {[%clk 0:00:09]}  h5 {[%clk 0:00:46]} 37. h4 {[%clk 0:00:09]}  g6 {[%clk 0:00:45]} 38. g3 {[%clk 0:00:09]}  Rb5 {[%clk 0:00:39]} 39. Ke4 {[%clk 0:00:08]}  Re5+ {[%clk 0:00:35]} 40. Kf4 {[%clk 0:00:07]}  Rf5+ {[%clk 0:00:34]} 41. Ke4 {[%clk 0:00:07]}  b5 {[%clk 0:00:34]} 42. Rb6+ {[%clk 0:00:07]}  Kd7 {[%clk 0:00:34]} 43. Kd4 {[%clk 0:00:03]}  Kc7 {[%clk 0:00:35]} 44. Ra6 {[%clk 0:00:04]}  Rf3 {[%clk 0:00:31]} 45. e4 {[%clk 0:00:04]}  Kd7 {[%clk 0:00:27]} 46. Rb6 {[%clk 0:00:03]}  Rxg3 {[%clk 0:00:25]} 47. Rxb5 {[%clk 0:00:03]}  Rg4 {[%clk 0:00:25]} 48. Rb7+ {[%clk 0:00:04]}  Ke8 {[%clk 0:00:25]} 49. Rb8+ {[%clk 0:00:04]}  Ke7 {[%clk 0:00:25]} 50. Rb7+ {[%clk 0:00:05]}  Kf6 {[%clk 0:00:24]} 51. Kd5 {[%clk 0:00:04]}  Rxh4 {[%clk 0:00:23]} 52. e5+ {[%clk 0:00:05]}  Kg7 {[%clk 0:00:19]} 53. e6 {[%clk 0:00:05]}  Kf8 {[%clk 0:00:15]} 54. Rxf7+ {[%clk 0:00:04]}  Ke8 {[%clk 0:00:16]} 55. Rg7 {[%clk 0:00:05]}  Rg4 {[%clk 0:00:16]} 56. Ke5 {[%clk 0:00:05]}  h4 {[%clk 0:00:15]} 57. Kf6 {[%clk 0:00:05]}  Rf4+ {[%clk 0:00:15]} 58. Kg5 {[%clk 0:00:04]}  Re4 {[%clk 0:00:10]} 59. Rxg6 {[%clk 0:00:04]}  h3 {[%clk 0:00:09]} 60. Rh6 {[%clk 0:00:04]}  Ke7 {[%clk 0:00:09]} 61. Kf5 {[%clk 0:00:04]}  Re3 {[%clk 0:00:08]} 62. Rh7+ {[%clk 0:00:05]}  Ke8 {[%clk 0:00:08]} 63. Kg4 {[%clk 0:00:04]}  Rxe6 {[%clk 0:00:07]} 64. Rxh3 {[%clk 0:00:05]}  Re7 {[%clk 0:00:08]} 65. Rg3 {[%clk 0:00:05]}  Kd7 {[%clk 0:00:08]} 66. Rf3 {[%clk 0:00:06]}  Re4+ {[%clk 0:00:07]} 67. Rf4 {[%clk 0:00:07]}  Rxf4+ {[%clk 0:00:08]} 68. Kxf4 {[%clk 0:00:08]} 1/2-1/2


[Site "https://www.chess.com"]